fUSD/lending_fUSD_20250204
["ID","MTS","AMOUNT","RATE_DAILY","PERIOD"]
[351647516,1738684262843,-500.0,0.00010021,2]
[351647517,1738684262852,-500.0,0.00010021,2]
[351647518,1738684262862,-500.0,0.00010021,2]
[351647519,1738684262871,-746.33,0.00010021,2]
[351647520,1738684262881,-1345.43,0.00010021,2]
[351647521,1738684262891,-500.0,0.00010021,2]
[351647522,1738684262901,-557.3418333,0.00010021,2]
[351647523,1738684262910,-500.0,0.00010021,2]
[351647524,1738684262920,-2705.39,0.00010021,2]
[351647525,1738684262930,-500.0,0.00010021,2]
[351647526,1738684262939,-500.0,0.00010021,2]
[351647527,1738684262949,-500.0,0.00010021,2]
[351647528,1738684262959,-500.0,0.00010021,2]
[351647529,1738684262969,-647.26,0.00010021,2]
[351647530,1738684262978,-500.0,0.00010021,2]
[351647531,1738684262992,-500.0,0.00010021,2]
[351647532,1738684263002,-500.0,0.00010021,2]
[351647533,1738684263012,-500.0,0.00010021,2]
[351647534,1738684263022,-500.0,0.00010021,2]
[351647535,1738684263033,-1254.7,0.00010021,2]
[351647536,1738684263043,-500.0,0.00010021,2]
[351647537,1738684263053,-500.0,0.00010021,2]
[351647538,1738684263062,-512.23,0.00010021,2]
[351647539,1738684263073,-500.0,0.00010021,2]
[351647540,1738684263083,-500.0,0.00010021,2]
[351647541,1738684263092,-690.87,0.00010021,2]
[351647542,1738684263103,-500.0,0.00010021,2]
[351647543,1738684263113,-500.0,0.00010021,2]
[351647544,1738684263124,-500.0,0.00010021,2]
[351647545,1738684263134,-500.0,0.00010021,2]
[351647546,1738684263144,-500.0,0.00010021,2]
[351647547,1738684263155,-505.63,0.00010021,2]
[351647548,1738684263165,-857.26,0.00010021,2]
[351647549,1738684263176,-579.5,0.00010021,2]
[351647550,1738684263193,-881.32,0.00010021,2]
[351647551,1738684263203,-500.0,0.00010021,2]
[351647552,1738684263213,-500.0,0.00010021,2]
[351647553,1738684263224,-500.0,0.00010021,2]
[351647554,1738684263235,-1000.0,0.00010021,2]
[351647555,1738684263245,-500.0,0.00010021,2]
[351647556,1738684263255,-500.0,0.00010021,2]
[351647557,1738684263265,-500.0,0.00010021,2]
[351647558,1738684263276,-500.0,0.00010021,2]
[351647559,1738684263286,-500.0,0.00010021,2]
[351647560,1738684263297,-500.0,0.00010021,2]
[351647561,1738684263307,-919.2,0.00010021,2]
[351647562,1738684263316,-500.0,0.00010021,2]
[351647563,1738684263326,-500.0,0.00010021,2]
[351647564,1738684263335,-500.0,0.00010021,2]
[351647565,1738684263534,-1048.31,0.00010021,2]
[351647566,1738684263544,-500.0,0.00010021,2]
[351647567,1738684263555,-500.0,0.00010021,2]
[351647568,1738684263564,-500.0,0.00010021,2]
[351647569,1738684263574,-150.0,0.0001006,2]
[351647570,1738684263584,-150.0,0.00010064,2]
[351647571,1738684263593,-21869.0,0.00010069,2]
[351647572,1738684263603,-150.0,0.00010076,2]
[351647573,1738684263613,-160.937124,0.0001008,2]
[351647574,1738684263622,-178.819026,0.0001008,2]
[351647575,1738684263631,-150.0,0.00010092,2]
[351647576,1738684263642,-150.0,0.00010093,2]
[351647577,1738684263652,-150.0,0.00010098,2]
[351647578,1738684263661,-248.99960507,0.000101,2]
[351647579,1738684263671,-200.0,0.000101,2]
[351647580,1738684263680,-200.0,0.000101,2]
[351647581,1738684263689,-200.0,0.000101,2]
[351647582,1738684263699,-200.0,0.000101,2]
[351647583,1738684263709,-150.0,0.00010109,2]
[351647584,1738684263718,-150.0,0.00010127,2]
[351647585,1738684263728,-1000.0,0.0001013,4]
[351647586,1738684263739,-198.15055205,0.00010136,2]
[351647587,1738684263750,-644.99,0.00010136,2]
[351647588,1738684263759,-174.0,0.00010137,2]
[351647589,1738684263769,-961.16,0.00010137,2]
[351647590,1738684263779,-662.03,0.00010137,2]
[351647591,1738684263789,-831.47,0.00010156,2]
[351647592,1738684263799,-565.56,0.00010156,2]
[351647593,1738684263809,-500.0,0.00010156,2]
[351647594,1738684263819,-500.0,0.00010156,2]
[351647595,1738684263829,-1677.19,0.00010156,2]
[351647596,1738684263839,-1630.47,0.00010156,2]
[351647597,1738684263851,-1030.85,0.00010156,2]
[351647598,1738684263862,-1109.51,0.00010156,2]
[351647599,1738684263871,-949.8,0.00010156,2]
[351647600,1738684263882,-500.0,0.00010156,2]
[351647601,1738684263893,-500.0,0.00010156,2]
[351647602,1738684263903,-718.16,0.00010156,2]
[351647603,1738684263914,-1155.04,0.00010156,2]
[351647604,1738684263925,-1579.5,0.00010156,2]
[351647605,1738684263935,-1966.48,0.00010156,2]
[351647606,1738684263946,-1086.24,0.00010156,2]
[351647607,1738684263956,-1178.15,0.00010156,2]
[351647608,1738684263965,-500.0,0.00010156,2]
[351647609,1738684263975,-845.35,0.00010156,2]
[351647610,1738684263988,-2763.26,0.00010156,2]
[351647611,1738684263999,-500.0,0.00010156,2]
[351647612,1738684264009,-500.0,0.00010156,2]
[351647613,1738684264019,-767.47,0.00010156,2]
[351647614,1738684264029,-500.0,0.00010156,2]
[351647615,1738684264039,-500.0,0.00010156,2]
[351647616,1738684264050,-500.0,0.00010156,2]
[351647617,1738684264060,-942.66,0.00010156,2]
[351647618,1738684264070,-1320.18,0.00010156,2]
[351647619,1738684264080,-500.0,0.00010156,2]
[351647620,1738684264090,-500.0,0.00010156,2]
[351647621,1738684264100,-500.0,0.00010156,2]
[351647622,1738684264110,-613.95,0.00010156,2]
[351647623,1738684264120,-500.0,0.00010157,2]
[351647624,1738684264130,-500.0,0.00010157,2]
[351647625,1738684264140,-500.0,0.00010157,2]
[351647626,1738684264150,-500.0,0.00010157,2]
[351647627,1738684264160,-500.0,0.00010157,2]
[351647628,1738684264170,-500.0,0.00010157,2]
[351647629,1738684264180,-500.0,0.00010157,2]
[351647630,1738684264194,-500.0,0.00010157,2]
[351647631,1738684264204,-500.0,0.00010157,2]
[351647632,1738684264214,-500.0,0.00010157,2]
[351647633,1738684264224,-500.0,0.00010157,2]
[351647634,1738684264239,-500.0,0.00010157,2]
[351647635,1738684264248,-500.0,0.00010157,2]
[351647636,1738684264258,-500.0,0.00010157,2]
[351647637,1738684264268,-500.0,0.00010157,2]
[351647638,1738684264278,-500.0,0.00010157,2]
[351647639,1738684264287,-500.0,0.00010157,2]
[351647640,1738684264297,-575.99460819,0.00010157,2]
[351647641,1738684264306,-500.0,0.00010157,2]
[351647642,1738684264316,-500.0,0.00010157,2]
[351647643,1738684264325,-621.72414469,0.00010157,2]
[351647644,1738684264336,-500.0,0.00010157,2]
[351647645,1738684264346,-500.0,0.00010157,2]
[351647646,1738684264356,-1376.8,0.00010157,2]
[351647647,1738684264366,-371.409493,0.00010157,2]
[351647648,1738684264376,-500.0,0.00010157,2]
[351647649,1738684264385,-500.0,0.00010157,2]
[351647650,1738684264395,-500.0,0.00010157,2]
[351647651,1738684264404,-500.0,0.00010157,2]
[351647652,1738684264414,-500.0,0.00010157,2]
[351647653,1738684264423,-500.0,0.00010157,2]
[351647654,1738684264432,-500.0,0.00010157,2]
[351647655,1738684264442,-500.0,0.00010157,2]
[351647656,1738684264451,-374.702743,0.00010157,2]
[351647657,1738684264461,-500.0,0.00010157,2]
[351647658,1738684264470,-500.0,0.00010157,2]
[351647659,1738684264480,-500.0,0.00010157,2]
[351647660,1738684264494,-500.0,0.00010157,2]
[351647661,1738684264504,-500.0,0.00010157,2]
[351647662,1738684264514,-603.86,0.00010157,2]
[351647663,1738684264524,-500.0,0.00010157,2]
[351647664,1738684264535,-500.0,0.00010157,2]
[351647665,1738684264545,-500.0,0.00010157,2]
[351647666,1738684264555,-505.15,0.00010157,2]
[351647667,1738684264565,-500.0,0.00010157,2]
[351647668,1738684264575,-500.0,0.00010157,2]
[351647669,1738684264585,-500.0,0.00010157,2]
[351647670,1738684264595,-500.0,0.00010157,2]
[351647671,1738684264604,-500.0,0.00010157,2]
[351647672,1738684264614,-500.0,0.00010157,2]
[351647673,1738684264625,-500.0,0.00010157,2]
[351647674,1738684264635,-500.0,0.00010157,2]
[351647675,1738684264644,-500.0,0.00010157,2]
[351647676,1738684264654,-500.0,0.00010157,2]
[351647677,1738684264664,-500.0,0.00010157,2]
[351647678,1738684264673,-500.0,0.00010157,2]
[351647679,1738684264682,-500.0,0.00010157,2]
[351647680,1738684264692,-500.0,0.00010157,2]
[351647681,1738684264702,-500.0,0.00010157,2]
[351647682,1738684264711,-500.0,0.00010157,2]
[351647683,1738684264721,-500.0,0.00010157,2]
[351647684,1738684264730,-500.0,0.00010157,2]
[351647685,1738684264742,-500.0,0.00010157,2]
[351647686,1738684264752,-500.0,0.00010157,2]
[351647687,1738684264762,-500.0,0.00010157,2]
[351647688,1738684264772,-500.0,0.00010157,2]
[351647689,1738684264781,-500.0,0.00010157,2]
[351647690,1738684264790,-500.0,0.00010157,2]
[351647691,1738684264799,-1336.7,0.00010157,2]
[351647692,1738684264809,-500.0,0.00010157,2]
[351647693,1738684264818,-860.24,0.00010157,2]
[351647694,1738684264827,-500.0,0.00010157,2]
[351647695,1738684264837,-500.0,0.00010157,2]
[351647696,1738684264846,-171.44752251,0.00010157,2]
[351647697,1738684264857,-500.0,0.00010157,2]
[351647698,1738684264867,-500.0,0.00010157,2]
[351647699,1738684264876,-500.0,0.00010157,2]
[351647700,1738684264885,-500.0,0.00010157,2]
[351647701,1738684264895,-242.16,0.00010157,2]
[351647702,1738684264905,-500.0,0.00010157,2]
[351647703,1738684264914,-862.92,0.00010157,2]
[351647704,1738684264923,-306.10962916,0.00010157,2]
[351647705,1738684264933,-500.0,0.00010157,2]
[351647706,1738684264943,-500.0,0.00010157,2]
[351647707,1738684264953,-1275.46,0.00010157,2]
[351647708,1738684264964,-500.0,0.00010157,2]
[351647709,1738684264974,-500.0,0.00010157,2]
[351647710,1738684264985,-500.0,0.00010157,2]
[351647711,1738684264995,-500.0,0.00010157,2]
[351647712,1738684265004,-683.87,0.00010157,2]
[351647713,1738684265014,-500.0,0.00010157,2]
[351647714,1738684265024,-694.7,0.00010157,2]
[351647715,1738684265034,-500.0,0.00010157,2]
[351647716,1738684265043,-500.0,0.00010157,2]
[351647717,1738684265055,-1189.62,0.00010157,2]
[351647718,1738684265065,-945.66,0.00010157,2]
[351647719,1738684265074,-500.0,0.00010157,2]
[351647720,1738684265086,-591.13,0.00010157,2]
[351647721,1738684265096,-328.71936568,0.00010157,2]
[351647722,1738684265106,-500.0,0.00010157,2]
[351647723,1738684265117,-448.63151368,0.00010157,2]
[351647724,1738684265127,-1576.23,0.00010157,2]
[351647725,1738684265138,-342.21245421,0.00010157,2]
[351647726,1738684265148,-500.0,0.00010157,2]
[351647727,1738684265160,-646.21,0.00010157,2]
[351647728,1738684265170,-582.02,0.00010157,2]
[351647729,1738684265181,-500.0,0.00010157,2]
[351647730,1738684265192,-500.0,0.00010157,2]
[351647731,1738684265202,-815.39,0.00010157,2]
[351647732,1738684265212,-2442.47,0.00010157,2]
[351647733,1738684265223,-500.0,0.00010157,2]
[351647734,1738684265236,-500.0,0.00010157,2]
[351647735,1738684265246,-1104.78,0.00010157,2]
[351647736,1738684265255,-500.0,0.00010157,2]
[351647737,1738684265264,-500.0,0.00010157,2]
[351647738,1738684265275,-1894.38,0.00010157,2]
[351647739,1738684265285,-500.0,0.00010157,2]
[351647740,1738684265295,-500.0,0.00010157,2]
[351647741,1738684265304,-1037.13,0.00010157,2]
[351647742,1738684265314,-1055.16,0.00010157,2]
[351647743,1738684265324,-500.0,0.00010157,2]
[351647744,1738684265334,-382.15,0.00010157,2]
[351647745,1738684265343,-500.0,0.00010157,2]
[351647746,1738684265352,-1108.57,0.00010157,2]
[351647747,1738684265362,-500.0,0.00010157,2]
[351647748,1738684265372,-500.0,0.00010157,2]
[351647749,1738684265382,-500.0,0.00010157,2]
[351647750,1738684265391,-679.39,0.00010157,2]
[351647751,1738684265401,-500.0,0.00010157,2]
[351647752,1738684265410,-1657.04,0.00010157,2]
[351647753,1738684265419,-500.0,0.00010157,2]
[351647754,1738684265428,-500.0,0.00010157,2]
[351647755,1738684265438,-500.0,0.00010157,2]
[351647756,1738684265448,-500.0,0.00010157,2]
[351647757,1738684265458,-761.99,0.00010157,2]
[351647758,1738684265467,-500.0,0.00010157,2]
[351647759,1738684265477,-500.0,0.00010157,2]
[351647760,1738684265489,-500.0,0.00010157,2]
[351647761,1738684265499,-500.0,0.00010157,2]
[351647762,1738684265508,-1518.66,0.00010157,2]
[351647763,1738684265518,-988.82,0.00010157,2]
[351647764,1738684265528,-377.36918617,0.00010157,2]
[351647765,1738684265538,-500.0,0.00010157,2]
[351647766,1738684265548,-500.0,0.00010157,2]
[351647767,1738684265558,-500.0,0.00010157,2]
[351647768,1738684265567,-500.0,0.00010157,2]
[351647769,1738684265577,-500.0,0.00010157,2]
[351647770,1738684265586,-846.7,0.00010157,2]
[351647771,1738684265596,-569.4,0.00010157,2]
[351647772,1738684265606,-500.0,0.00010157,2]
[351647773,1738684265615,-500.0,0.00010157,2]
[351647774,1738684265625,-754.59,0.00010157,2]
[351647775,1738684265635,-1310.6,0.00010157,2]
[351647776,1738684265644,-500.0,0.00010157,2]
[351647777,1738684265653,-500.0,0.00010157,2]
[351647778,1738684265663,-500.0,0.00010157,2]
[351647779,1738684265672,-500.0,0.00010157,2]
[351647780,1738684265682,-500.0,0.00010157,2]
[351647781,1738684265691,-500.0,0.00010157,2]
[351647782,1738684265700,-500.0,0.00010157,2]
[351647783,1738684265709,-626.55,0.00010157,2]
[351647784,1738684265719,-500.0,0.00010157,2]
[351647785,1738684265728,-461.3355314,0.00010157,2]
[351647786,1738684265740,-500.0,0.00010157,2]
[351647787,1738684265749,-500.0,0.00010157,2]
[351647788,1738684265759,-1039.57,0.00010157,2]
[351647789,1738684265768,-500.0,0.00010157,2]
[351647790,1738684265778,-500.0,0.00010157,2]
[351647791,1738684265787,-1059.93,0.00010157,2]
[351647792,1738684265797,-500.0,0.00010157,2]
[351647793,1738684265807,-500.0,0.00010157,2]
[351647794,1738684265816,-500.0,0.00010157,2]
[351647795,1738684265826,-500.0,0.00010157,2]
[351647796,1738684265836,-500.0,0.00010157,2]
[351647797,1738684265846,-675.84,0.00010157,2]
[351647798,1738684265855,-500.0,0.00010157,2]
[351647799,1738684265865,-689.86,0.00010157,2]
[351647800,1738684265874,-500.0,0.00010157,2]
[351647801,1738684265883,-500.0,0.00010157,2]
[351647802,1738684265893,-500.0,0.00010157,2]
[351647803,1738684265902,-933.96,0.00010157,2]
[351647804,1738684265912,-769.85,0.00010157,2]
[351647805,1738684265922,-500.0,0.00010157,2]
[351647806,1738684265932,-500.0,0.00010157,2]
[351647807,1738684265941,-500.0,0.00010157,2]
[351647808,1738684265951,-500.0,0.00010157,2]
[351647809,1738684265960,-500.0,0.00010158,2]
[351647810,1738684265969,-500.0,0.00010158,2]
[351647811,1738684265980,-500.0,0.00010158,2]
[351647812,1738684265992,-500.0,0.00010158,2]
[351647813,1738684266002,-500.0,0.00010158,2]
[351647814,1738684266011,-500.0,0.00010158,2]
[351647815,1738684266021,-500.0,0.00010158,2]
[351647816,1738684266030,-500.0,0.00010158,2]
[351647817,1738684266040,-500.0,0.00010158,2]
[351647818,1738684266050,-500.0,0.00010158,2]
[351647819,1738684266060,-500.0,0.00010158,2]
[351647820,1738684266070,-500.0,0.00010158,2]
[351647821,1738684266080,-500.0,0.00010158,2]
[351647822,1738684266089,-452.61735371,0.00010158,2]
[351647823,1738684266100,-500.0,0.00010158,2]
[351647824,1738684266109,-500.0,0.00010158,2]
[351647825,1738684266119,-500.0,0.00010158,2]
[351647826,1738684266128,-500.0,0.00010158,2]
[351647827,1738684266137,-500.0,0.00010158,2]
[351647828,1738684266147,-500.0,0.00010158,2]
[351647829,1738684266156,-500.0,0.00010158,2]
[351647830,1738684266165,-500.0,0.00010158,2]
[351647831,1738684266175,-500.0,0.00010158,2]
[351647832,1738684266185,-500.0,0.00010158,2]
[351647833,1738684266197,-500.0,0.00010158,2]
[351647834,1738684266207,-500.0,0.00010158,2]
[351647835,1738684266216,-500.0,0.00010158,2]
[351647836,1738684266225,-500.0,0.00010158,2]
[351647837,1738684266239,-500.0,0.00010158,2]
[351647838,1738684266249,-500.0,0.00010158,2]
[351647839,1738684266258,-500.0,0.00010158,2]
[351647840,1738684266269,-499.61490726,0.00010158,2]
[351647841,1738684266279,-500.0,0.00010158,2]
[351647842,1738684266288,-500.0,0.00010158,2]
[351647843,1738684266298,-500.0,0.00010158,2]
[351647844,1738684266308,-500.0,0.00010158,2]
[351647845,1738684266317,-500.0,0.00010158,2]
[351647846,1738684266326,-500.0,0.00010158,2]
[351647847,1738684266335,-500.0,0.00010158,2]
[351647848,1738684266345,-500.0,0.00010158,2]
[351647849,1738684266355,-500.0,0.00010158,2]
[351647850,1738684266364,-500.0,0.00010158,2]
[351647851,1738684266374,-500.0,0.00010158,2]
[351647852,1738684266383,-500.0,0.00010158,2]
[351647853,1738684266393,-500.0,0.00010158,2]
[351647854,1738684266403,-500.0,0.00010158,2]
[351647855,1738684266412,-500.0,0.00010158,2]
[351647856,1738684266422,-500.0,0.00010158,2]
[351647857,1738684266432,-500.0,0.00010158,2]
[351647858,1738684266441,-500.0,0.00010158,2]
[351647859,1738684266451,-500.0,0.00010158,2]
[351647860,1738684266461,-500.0,0.00010158,2]
[351647861,1738684266471,-500.0,0.00010158,2]
[351647862,1738684266480,-500.0,0.00010158,2]
[351647863,1738684266494,-500.0,0.00010158,2]
[351647864,1738684266504,-500.0,0.00010158,2]
[351647865,1738684266513,-500.0,0.00010158,2]
[351647866,1738684266523,-500.0,0.00010158,2]
[351647867,1738684266532,-500.0,0.00010158,2]
[351647868,1738684266542,-500.0,0.00010158,2]
[351647869,1738684266551,-500.0,0.00010158,2]
[351647870,1738684266561,-500.0,0.00010158,2]
[351647871,1738684266571,-500.0,0.00010158,2]
[351647872,1738684266580,-500.0,0.00010158,2]
[351647873,1738684266590,-500.0,0.00010158,2]
[351647874,1738684266599,-681.06,0.00010158,2]
[351647875,1738684266609,-500.0,0.00010158,2]
[351647876,1738684266618,-500.0,0.00010158,2]
[351647877,1738684266628,-500.0,0.00010158,2]
[351647878,1738684266637,-305.9989972,0.00010158,2]
[351647879,1738684266647,-500.0,0.00010158,2]
[351647880,1738684266657,-500.0,0.00010158,2]
[351647881,1738684266667,-500.0,0.00010158,2]
[351647882,1738684266676,-500.0,0.00010158,2]
[351647883,1738684266686,-184.79071621,0.00010158,2]
[351647884,1738684266695,-500.0,0.00010158,2]
[351647885,1738684266705,-500.0,0.00010158,2]
[351647886,1738684266714,-500.0,0.00010158,2]
[351647887,1738684266724,-500.0,0.00010158,2]
[351647888,1738684266733,-500.0,0.00010158,2]
[351647889,1738684266746,-500.0,0.00010158,2]
[351647890,1738684266756,-500.0,0.00010158,2]
[351647891,1738684266765,-500.0,0.00010158,2]
[351647892,1738684266775,-500.0,0.00010158,2]
[351647893,1738684266785,-500.0,0.00010158,2]
[351647894,1738684266795,-649.92,0.00010158,2]
[351647895,1738684266804,-500.0,0.00010158,2]
[351647896,1738684266815,-500.0,0.00010158,2]
[351647897,1738684266824,-500.0,0.00010158,2]
[351647898,1738684266835,-505.16,0.00010158,2]
[351647899,1738684266844,-500.0,0.00010158,2]
[351647900,1738684266854,-500.0,0.00010158,2]
[351647901,1738684266863,-500.0,0.00010158,2]
[351647902,1738684266873,-500.0,0.00010158,2]
[351647903,1738684266883,-500.0,0.00010158,2]
[351647904,1738684267069,-500.0,0.00010158,2]
[351647905,1738684267079,-500.0,0.00010158,2]
[351647906,1738684267091,-500.0,0.00010158,2]
[351647907,1738684267101,-227.06466688,0.00010158,2]
[351647908,1738684267111,-611.4,0.00010158,2]
[351647909,1738684267121,-500.0,0.00010158,2]
[351647910,1738684267130,-500.0,0.00010158,2]
[351647911,1738684267142,-500.0,0.00010158,2]
[351647912,1738684267151,-500.0,0.00010158,2]
[351647913,1738684267162,-500.0,0.00010158,2]
[351647914,1738684267172,-500.0,0.00010158,2]
[351647915,1738684267184,-500.0,0.00010158,2]
[351647916,1738684267194,-500.0,0.00010158,2]
[351647917,1738684267204,-500.0,0.00010158,2]
[351647918,1738684267215,-329.91032996,0.00010158,2]
[351647919,1738684267226,-500.0,0.00010158,2]
[351647920,1738684267241,-500.0,0.00010158,2]
[351647921,1738684267251,-500.0,0.00010158,2]
[351647922,1738684267265,-500.0,0.00010158,2]
[351647923,1738684267276,-500.0,0.00010158,2]
[351647924,1738684267287,-500.0,0.00010158,2]
[351647925,1738684267298,-746.33,0.00010158,2]
[351647926,1738684267308,-1345.43,0.00010158,2]
[351647927,1738684267319,-500.0,0.00010158,2]
[351647928,1738684267330,-500.0,0.00010158,2]
[351647929,1738684267340,-2705.39,0.00010158,2]
[351647930,1738684267350,-500.0,0.00010158,2]
[351647931,1738684267361,-500.0,0.00010158,2]
[351647932,1738684267371,-500.0,0.00010158,2]
[351647933,1738684267382,-500.0,0.00010158,2]
[351647934,1738684267392,-647.26,0.00010158,2]
[351647935,1738684267402,-500.0,0.00010158,2]
[351647936,1738684267412,-159.8142434,0.00010158,2]
[351647937,1738684267422,-500.0,0.00010158,2]
[351647938,1738684267432,-500.0,0.00010158,2]
[351647939,1738684267442,-500.0,0.00010158,2]
[351647940,1738684267452,-1254.7,0.00010158,2]
[351647941,1738684267461,-500.0,0.00010158,2]
[351647942,1738684267471,-500.0,0.00010158,2]
[351647943,1738684267480,-512.23,0.00010158,2]
[351647944,1738684267494,-500.0,0.00010158,2]
[351647945,1738684267504,-500.0,0.00010158,2]
[351647946,1738684267514,-690.87,0.00010158,2]
[351647947,1738684267524,-500.0,0.00010158,2]
[351647948,1738684267534,-500.0,0.00010158,2]
[351647949,1738684267544,-500.0,0.00010158,2]
[351647950,1738684267554,-500.0,0.00010158,2]
[351647951,1738684267564,-500.0,0.00010158,2]
[351647952,1738684267574,-505.63,0.00010158,2]
[351647953,1738684267583,-857.26,0.00010158,2]
[351647954,1738684267593,-579.5,0.00010158,2]
[351647955,1738684267603,-881.32,0.00010158,2]
[351647956,1738684267613,-500.0,0.00010158,2]
[351647957,1738684267624,-500.0,0.00010158,2]
[351647958,1738684267635,-1000.0,0.00010158,2]
[351647959,1738684267645,-500.0,0.00010158,2]
[351647960,1738684267657,-500.0,0.00010158,2]
[351647961,1738684267667,-235.2,0.00010158,2]
[351647962,1738684267677,-500.0,0.00010158,2]
[351647963,1738684267687,-500.0,0.00010158,2]
[351647964,1738684267697,-500.0,0.00010158,2]
[351647965,1738684267707,-919.2,0.00010158,2]
[351647966,1738684267716,-500.0,0.00010158,2]
[351647967,1738684267727,-500.0,0.00010158,2]
[351647968,1738684267741,-500.0,0.00010158,2]
[351647969,1738684267751,-1048.31,0.00010158,2]
[351647970,1738684267761,-500.0,0.00010158,2]
[351647971,1738684267770,-500.0,0.00010158,2]
[351647972,1738684267780,-501.45,0.00010158,2]
[351647973,1738684267790,-431.43955898,0.00010159,2]
[351647974,1738684267800,-200.0,0.00010201,2]
[351647975,1738684267810,-200.0,0.00010201,2]
[351647976,1738684267820,-200.0,0.00010201,2]
[351647977,1738684267829,-200.0,0.00010201,2]
[351647978,1738684267839,-160.937124,0.00010203,2]
[351647979,1738684267848,-150.0,0.00010208,2]
[351647980,1738684267858,-150.0,0.00010214,2]
[351647981,1738684267867,-4448.93890073,0.00010233,2]
[351647982,1738684267876,-644.99,0.00010273,2]
[351647983,1738684267886,-831.47,0.00010293,2]
[351647984,1738684267896,-565.56,0.00010293,2]
[351647985,1738684267905,-500.0,0.00010293,2]
[351647986,1738684267915,-500.0,0.00010293,2]
[351647987,1738684267925,-1677.19,0.00010293,2]
[351647988,1738684267934,-1630.47,0.00010293,2]
[351647989,1738684267944,-1030.85,0.00010293,2]
[351647990,1738684267954,-1109.51,0.00010293,2]
[351647991,1738684267963,-949.8,0.00010293,2]
[351647992,1738684267972,-500.0,0.00010293,2]
[351647993,1738684267983,-500.0,0.00010293,2]
[351647994,1738684267996,-718.16,0.00010293,2]
[351647995,1738684268006,-1155.04,0.00010293,2]
[351647996,1738684268015,-1579.5,0.00010293,2]
[351647997,1738684268025,-1966.48,0.00010293,2]
[351647998,1738684268034,-1086.24,0.00010293,2]
[351647999,1738684268044,-1178.15,0.00010293,2]
[351648000,1738684268053,-500.0,0.00010293,2]
[351648001,1738684268063,-845.35,0.00010293,2]
[351648002,1738684268072,-2763.26,0.00010293,2]
[351648003,1738684268081,-500.0,0.00010293,2]
[351648004,1738684268091,-500.0,0.00010293,2]
[351648005,1738684268100,-767.47,0.00010293,2]
[351648006,1738684268110,-500.0,0.00010293,2]
[351648007,1738684268119,-500.0,0.00010293,2]
[351648008,1738684268128,-500.0,0.00010293,2]
[351648009,1738684268138,-942.66,0.00010293,2]
[351648010,1738684268147,-1320.18,0.00010293,2]
[351648011,1738684268156,-500.0,0.00010293,2]
[351648012,1738684268166,-500.0,0.00010293,2]
[351648013,1738684268176,-500.0,0.00010293,2]
[351648014,1738684268187,-613.95,0.00010293,2]
[351648015,1738684268200,-500.0,0.00010294,2]